bitfinex/quotes_SOLUSD_20251024
["timestamp","ask_amount","ask_price","bid_price","bid_amount"]
[1761304979484,7.84874935,191.38,191.36,0.67]
[1761304979689,7.84874935,191.38,191.37,36.22]
[1761304980591,20.91176533,191.38,191.31,3.34625478]
[1761304980792,2.62354296,191.37,191.34,0.67]
[1761304983235,5.2257525,191.36,191.34,0.67]
[1761304984222,5.2257525,191.36,191.31,0.87]
[1761304984223,3.30354296,191.35,191.31,0.87]
[1761304984404,2.62354296,191.33,191.31,0.87]
[1761304984607,2.62354296,191.32,191.31,0.2]
[1761304984816,2.62354296,191.33,191.32,0.67]
[1761304984997,18.29013377,191.36,191.32,0.67]
[1761304985336,5.22629873,191.34,191.32,0.67]
[1761304986621,5.22605927,191.35,191.32,0.67]
[1761304987919,5.2257525,191.36,191.32,0.67]
[1761304988331,7.84929546,191.36,191.32,0.67]
[1761304988497,2.62354296,191.35,191.32,0.67]
[1761304988810,2.62354296,191.34,191.32,0.67]
[1761304989020,2.62354296,191.33,191.31,0.2]
[1761304989193,10.5844375,191.35,191.32,36.22]
[1761304989394,2.62354296,191.33,191.31,0.2]
[1761304989590,11.55647521,191.34,191.32,36.22]
[1761304989794,5.22657189,191.33,191.32,36.22]
[1761304990621,7.85011485,191.33,191.32,36.22]
[1761304991124,7.85011485,191.33,191.32,36.89]
[1761304991829,7.85011485,191.33,191.32,36.22]
[1761304992199,5.22657189,191.33,191.32,36.22]
[1761304992399,7.85011485,191.33,191.32,36.22]
[1761304994799,5.22657189,191.33,191.32,36.22]
[1761304995007,5.22657189,191.33,191.32,36.94]
[1761304996223,7.84984169,191.34,191.32,36.94]
[1761304996730,7.84984169,191.34,191.32,0.72]
[1761304996939,7.84984169,191.34,191.33,36.22]
[1761304999306,5.22610251,191.35,191.33,36.94]
[1761304999507,5.22610251,191.35,191.34,0.72]
[1761304999917,5.22610251,191.35,191.34,36.94]
[1761305000121,5.22610251,191.35,191.34,0.72]
[1761305000332,5.22610251,191.35,191.34,36.94]
[1761305000632,28.1057525,191.36,191.34,36.94]
[1761305000821,30.72929546,191.36,191.34,36.94]
[1761305001023,30.72929546,191.36,191.35,36.22]
[1761305003830,30.72929546,191.36,191.35,36.94]
[1761305004608,30.72929546,191.36,191.35,0.72]
[1761305004831,30.72929546,191.36,191.35,36.94]
[1761305005839,30.72929546,191.36,191.35,0.72]
[1761305006012,30.72929546,191.36,191.35,36.22]
[1761305006214,43.79367673,191.36,191.33,0.72]
[1761305006415,2.62354296,191.34,191.31,0.92]
[1761305006625,2.62354296,191.33,191.32,36.22]
[1761305007015,2.62354296,191.33,191.31,0.2]
[1761305007214,2.62354296,191.33,191.32,36.94]
[1761305007444,2.62354296,191.33,191.32,0.72]
[1761305007651,2.62354296,191.33,191.32,36.94]
[1761305007946,2.62354296,191.33,191.32,36.22]
[1761305008149,2.62354296,191.33,191.31,0.2]
[1761305008317,0.66,191.34,191.31,36.42]
[1761305008318,7.85038803,191.32,191.31,36.42]
[1761305008717,6.9058385,191.32,191.31,36.42]
[1761305009345,41.38231371,191.32,191.31,0.2]
[1761305010114,45.27588617,191.32,191.31,0.2]
[1761305012133,44.55588617,191.32,191.31,0.2]
[1761305013233,45.27588617,191.32,191.31,0.2]
[1761305013536,44.55588617,191.32,191.31,0.2]
[1761305014720,45.27588617,191.32,191.31,0.2]
[1761305015339,44.55588617,191.32,191.31,0.2]
[1761305019838,33.67941096,191.32,191.31,0.2]
[1761305023450,32.00041753,191.32,191.31,0.2]
[1761305023752,34.35941096,191.32,191.31,0.2]
[1761305023933,33.67483391,191.32,191.31,0.89]
[1761305024134,3.88899541,191.32,191.31,0.89]
[1761305024339,5.22629873,191.34,191.31,0.89]
[1761305024530,5.22629873,191.34,191.32,0.69]
[1761305025629,5.22629873,191.34,191.3,1.67899343]
[1761305027659,5.22629873,191.34,191.31,0.69]
[1761305029042,1.67899343,191.36,191.31,2.36899343]
[1761305029244,3.89132402,191.35,191.33,1.67899343]
[1761305029550,1.67899343,191.39,191.34,1.67899343]
[1761305029731,9.11686212,191.38,191.34,1.67899343]
[1761305029931,3.89160849,191.37,191.35,0.69]
[1761305030150,5.22525363,191.38,191.35,0.69]
[1761305030349,3.89146284,191.37,191.35,0.69]
[1761305030539,5.22525363,191.38,191.35,0.69]
[1761305030734,9.11704798,191.37,191.35,0.69]
[1761305030954,5.22558431,191.37,191.35,0.69]
[1761305031150,6.90457774,191.37,191.36,36.22]
[1761305031357,10.79582913,191.37,191.36,36.22]
[1761305031558,11.47582913,191.37,191.36,36.22]
[1761305032857,10.79582913,191.37,191.36,36.22]
[1761305033237,3.89125139,191.37,191.36,36.91]
[1761305033640,5.22498221,191.39,191.36,36.91]
[1761305033841,0.68,191.45,191.38,51.67899343]
[1761305034034,0.1,191.52,191.42,50.0]
[1761305034035,3.89205687,191.44,191.42,50.0]
[1761305034259,5.90165944,191.51,191.44,50.0]
[1761305034260,5.22165944,191.51,191.44,50.0]
[1761305034453,3.88987737,191.5,191.45,36.22]
[1761305034650,1.67899343,191.48,191.45,36.91]
[1761305034835,1.67899343,191.49,191.46,0.69]
[1761305035041,3.89013106,191.48,191.46,0.69]
[1761305035251,6.90124661,191.49,191.46,0.69]
[1761305035452,5.22225318,191.49,191.46,0.69]
[1761305035945,1.67899343,191.48,191.47,36.26]
[1761305037358,6.90147097,191.48,191.47,36.26]
[1761305037861,7.58147097,191.48,191.46,36.24]
[1761305038067,1.67899343,191.47,191.46,36.24]
[1761305038282,2.35899343,191.47,191.46,36.24]
[1761305038449,1.67899343,191.47,191.43,0.69]
[1761305038768,1.67899343,191.45,191.44,36.24]
[1761305039272,18.27867139,191.48,191.44,36.93]
[1761305039458,1.67899343,191.46,191.45,0.69]
[1761305039659,13.05619385,191.48,191.45,0.69]
[1761305039951,1.67899343,191.47,191.45,0.69]
[1761305040547,6.90194509,191.47,191.45,0.69]
[1761305041568,1.67899343,191.46,191.45,0.69]
[1761305041768,6.90201651,191.46,191.45,0.69]
[1761305043575,1.67899343,191.47,191.45,0.69]
[1761305045080,5.22302308,191.46,191.45,0.69]
[1761305045373,5.22302308,191.46,191.45,36.91]
[1761305047474,5.2227503,191.47,191.45,36.91]
[1761305049992,2.35899343,191.46,191.45,36.22]
[1761305050159,2.35899343,191.46,191.43,36.2]
[1761305050479,24.55899343,191.44,191.37,0.69]
[1761305050777,1.67899343,191.39,191.37,0.69]
[1761305050965,1.67899343,191.38,191.35,0.69]
[1761305051165,1.67899343,191.38,191.36,36.22]
[1761305051578,1.67899343,191.38,191.36,36.93]
[1761305051956,6.90441179,191.38,191.36,36.93]
[1761305052371,6.90441179,191.38,191.34,0.71]
[1761305052659,6.90441179,191.38,191.35,36.24]
[1761305053582,6.90441179,191.38,191.35,36.95]
[1761305053790,1.67899343,191.37,191.35,36.24]
[1761305053983,1.67899343,191.36,191.35,36.24]
[1761305054903,2.39899343,191.36,191.32,0.71]
[1761305055214,1.67899343,191.35,191.33,36.24]
[1761305055383,1.67899343,191.36,191.33,36.24]
[1761305055584,1.67899343,191.37,191.33,36.95]
[1761305055995,5.2257525,191.36,191.33,36.95]
[1761305056210,6.90474593,191.36,191.33,36.95]
[1761305057892,7.62474593,191.36,191.33,36.95]
[1761305059387,6.90474593,191.36,191.34,0.71]
[1761305059712,1.67899343,191.37,191.34,0.71]
[1761305060909,6.90419982,191.38,191.34,0.71]
[1761305061210,7.62419982,191.38,191.34,0.71]
[1761305061615,5.22493988,191.39,191.34,2.38899343]
[1761305061801,5.22493988,191.39,191.35,1.67899343]
[1761305061999,5.22493988,191.39,191.36,36.93]
[1761305062410,5.22470461,191.4,191.37,0.71]
[1761305064488,6.90369804,191.4,191.37,0.71]
[1761305064793,5.22470461,191.4,191.37,0.71]
[1761305067113,28.10402122,191.43,191.38,1.67899343]
[1761305067296,5.22402122,191.43,191.39,36.24]
[1761305067494,5.22402122,191.43,191.39,36.95]
[1761305067716,5.22402122,191.43,191.4,0.71]
[1761305069013,2.37899343,191.43,191.4,0.71]
[1761305069196,2.37899343,191.43,191.39,36.24]
[1761305069400,2.37899343,191.43,191.39,36.91]
[1761305069592,2.37899343,191.43,191.4,36.24]
[1761305070314,5.22411451,191.42,191.4,36.24]
[1761305071101,5.22411451,191.42,191.4,36.91]
[1761305071300,7.84354478,191.44,191.41,0.67]
[1761305072012,5.22356874,191.44,191.41,0.67]
[1761305072196,28.1033135,191.45,191.41,3.28997604]
[1761305072395,28.1033135,191.45,191.42,0.67]
[1761305072595,28.1033135,191.45,191.43,36.22]
[1761305072800,5.2233135,191.45,191.43,36.22]
[1761305073098,5.2233135,191.45,191.43,36.89]
[1761305073314,7.84299912,191.46,191.43,36.89]
[1761305073819,8.54299912,191.46,191.43,36.89]
[1761305074920,22.88,191.47,191.45,2.61997604]
[1761305075101,5.22245059,191.49,191.46,38.83997604]
[1761305075517,5.22245059,191.49,191.47,36.89]
[1761305075700,5.22245059,191.49,191.47,0.67]
[1761305075910,5.22245059,191.49,191.48,36.22]
[1761305076417,7.84242663,191.49,191.48,36.22]
[1761305076625,8.54242663,191.49,191.48,36.22]
[1761305078299,7.84242663,191.49,191.48,36.22]
[1761305080529,8.54242663,191.49,191.48,36.22]
[1761305081710,5.22245059,191.49,191.48,36.22]
[1761305081923,7.84242663,191.49,191.48,36.22]
[1761305083529,7.84194817,191.5,191.48,36.88]
[1761305083726,7.84194817,191.5,191.48,0.66]
[1761305084029,5.22197213,191.5,191.49,36.22]
[1761305088531,5.22165944,191.51,191.49,36.88]
[1761305088907,7.84163548,191.51,191.49,36.88]
[1761305089525,3.33997604,191.5,191.43,57.84376166]
[1761305089726,2.61997604,191.48,191.44,36.2]
[1761305089915,2.61997604,191.47,191.44,36.2]
[1761305090121,2.61997604,191.47,191.44,36.86]
[1761305090439,7.84295648,191.47,191.44,36.86]
[1761305090741,7.84295648,191.47,191.44,0.66]
[1761305090926,7.84295648,191.47,191.45,36.2]
[1761305091332,5.22298044,191.47,191.45,36.86]
[1761305091640,5.22298044,191.47,191.46,36.2]
[1761305092539,7.84248828,191.48,191.46,36.86]
[1761305094046,7.84248828,191.48,191.46,36.2]
[1761305094249,8.56248828,191.48,191.46,36.2]
[1761305094541,7.84248828,191.48,191.46,36.86]
[1761305095021,5.22251224,191.48,191.46,36.86]
[1761305096923,5.22251224,191.48,191.46,36.2]
[1761305096924,7.84248828,191.48,191.46,36.2]
[1761305097124,8.56248828,191.48,191.46,36.2]
[1761305097536,7.84248828,191.48,191.46,36.2]
[1761305098333,8.56248828,191.48,191.46,36.2]
[1761305099254,7.84248828,191.48,191.46,36.2]
[1761305099432,8.56248828,191.48,191.46,36.2]
[1761305099633,7.84248828,191.48,191.46,36.2]
[1761305099849,5.9427503,191.47,191.46,36.2]
[1761305100354,8.56272634,191.47,191.46,36.2]
[1761305100542,8.56272634,191.47,191.4,0.66]
[1761305100747,2.61997604,191.44,191.41,36.2]
[1761305100946,2.61997604,191.44,191.4,0.66]
[1761305101149,3.33997604,191.44,191.41,36.2]
[1761305101350,2.61997604,191.45,191.42,36.2]
[1761305102350,5.94335916,191.45,191.43,36.2]
[1761305102551,5.94335916,191.45,191.44,36.2]
[1761305103759,5.22335916,191.45,191.44,36.2]
[1761305105246,5.22335916,191.45,191.42,0.66]
[1761305105446,5.22335916,191.45,191.43,36.2]
[1761305107354,2.61997604,191.44,191.43,36.2]
[1761305107561,3.33997604,191.44,191.43,36.2]
[1761305109457,3.33997604,191.44,191.38,0.66]
[1761305109458,21.62246663,191.44,191.38,0.66]
[1761305109639,2.61997604,191.41,191.39,36.2]
[1761305110036,3.33997604,191.41,191.39,36.2]
[1761305110565,3.33997604,191.41,191.4,36.2]
[1761305111744,8.56436348,191.41,191.4,36.2]
[1761305112758,7.84436348,191.41,191.4,36.2]
[1761305113366,5.22438744,191.41,191.4,36.2]
[1761305113872,5.2241752,191.42,191.4,36.86]
[1761305114044,5.2241752,191.42,191.41,0.66]
[1761305114439,15.67889789,191.44,191.41,0.66]
[1761305114440,3.27997604,191.45,191.41,0.66]
[1761305114665,5.22329589,191.45,191.42,36.2]
[1761305114871,7.84327193,191.45,191.42,36.86]
[1761305116783,8.50327193,191.45,191.42,36.86]
[1761305117458,8.50327193,191.45,191.42,36.2]
[1761305118050,8.50327193,191.45,191.42,36.86]
[1761305119476,8.50327193,191.45,191.42,36.2]
[1761305120652,8.50327193,191.45,191.42,36.86]
[1761305122569,5.22329589,191.45,191.43,0.66]
[1761305122771,15.68012544,191.48,191.43,0.66]
[1761305123074,28.10247754,191.48,191.43,3.27997604]
[1761305123274,2.61997604,191.46,191.41,0.66]
[1761305123482,2.61997604,191.45,191.42,36.2]
[1761305123658,3.27997604,191.47,191.42,36.2]
[1761305123857,3.27997604,191.47,191.43,0.66]
[1761305124258,5.88294887,191.47,191.43,0.66]
[1761305124467,5.22294887,191.47,191.43,0.66]
[1761305124777,5.88294887,191.47,191.43,0.66]
[1761305125473,5.22294887,191.47,191.43,0.66]
[1761305126182,5.88294887,191.47,191.43,0.66]
[1761305127075,5.22294887,191.47,191.43,0.66]
[1761305127275,7.84292491,191.47,191.43,0.66]
[1761305128558,8.54292491,191.47,191.43,0.66]
[1761305130885,5.9232918,191.46,191.43,0.66]
[1761305131965,5.2232918,191.46,191.43,0.66]
[1761305134690,5.2227503,191.47,191.43,0.66]
[1761305135267,5.2227503,191.47,191.44,36.2]
[1761305135472,6.89881609,191.47,191.44,36.2]
[1761305135682,6.89881609,191.47,191.44,0.69]
[1761305136189,5.2227503,191.47,191.45,36.2]
[1761305136374,5.9227503,191.47,191.46,36.2]
[1761305137778,5.9227503,191.47,191.44,0.69]
[1761305137977,5.9227503,191.47,191.46,36.2]
[1761305138287,5.2227503,191.47,191.46,36.2]
[1761305138488,5.9227503,191.47,191.46,36.2]
[1761305139571,5.2227503,191.47,191.46,36.2]
[1761305140274,5.2227503,191.47,191.46,36.89]
[1761305140584,5.2227503,191.47,191.46,36.2]
[1761305140884,5.22255042,191.48,191.46,36.2]
[1761305141386,5.22255042,191.48,191.45,0.69]
[1761305141881,5.22255042,191.48,191.46,36.2]
[1761305143991,5.22255042,191.48,191.46,36.86]
[1761305144391,6.89861621,191.48,191.46,36.2]
[1761305144574,7.56861621,191.48,191.46,36.2]
[1761305145270,5.89255042,191.48,191.46,36.2]
[1761305145589,5.22255042,191.48,191.46,36.86]
[1761305147907,28.10212994,191.5,191.47,0.66]
[1761305149678,28.77212994,191.5,191.47,0.66]
[1761305149986,30.44819573,191.5,191.47,0.66]
[1761305150376,29.77819573,191.5,191.46,36.2]
[1761305150577,1.67606579,191.48,191.47,36.2]
[1761305150967,2.34606579,191.48,191.47,36.2]
[1761305151288,1.67606579,191.48,191.47,36.2]
[1761305151484,2.34606579,191.48,191.47,36.2]
[1761305151784,5.89247754,191.48,191.47,36.2]
[1761305152574,5.22247754,191.48,191.47,36.2]
[1761305153394,5.22247754,191.48,191.45,0.66]
[1761305153586,5.22247754,191.48,191.47,36.2]
[1761305153788,0.67,191.49,191.47,36.2]
[1761305153789,5.89226649,191.49,191.47,36.2]
[1761305153982,5.89226649,191.49,191.45,2.33606579]
[1761305154179,5.22226649,191.49,191.46,38.53606579]
[1761305154375,5.22226649,191.49,191.47,0.66]
[1761305155071,5.22226649,191.49,191.48,36.2]
[1761305155468,5.22226649,191.49,191.48,0.66]
[1761305155673,5.22226649,191.49,191.48,36.86]
[1761305156168,5.22226649,191.49,191.48,36.2]
[1761305156495,36.70349977,191.52,191.48,36.86]
[1761305156691,0.67,191.51,191.48,0.66]
[1761305156994,5.89165944,191.51,191.48,0.66]
[1761305157195,5.89165944,191.51,191.49,36.2]
[1761305158189,7.56772523,191.51,191.49,36.2]
[1761305158896,5.22165944,191.51,191.49,36.2]
[1761305159392,5.89165944,191.51,191.49,36.2]
[1761305159590,5.22165944,191.51,191.49,36.2]
[1761305159775,5.22165944,191.51,191.5,0.66]
[1761305160177,5.22165944,191.51,191.49,36.2]
[1761305160382,5.22165944,191.51,191.49,36.86]
[1761305160978,5.22165944,191.51,191.49,36.2]
[1761305162189,5.22165944,191.51,191.49,36.86]
[1761305162998,5.32139234,191.52,191.5,0.66]
[1761305164584,5.32139234,191.52,191.51,36.18]
[1761305165482,0.1,191.52,191.51,36.84]
[1761305165711,0.1,191.52,191.51,36.18]
[1761305166200,0.1,191.52,191.51,36.84]
[1761305166589,0.1,191.52,191.51,0.66]
[1761305166800,0.1,191.52,191.51,36.84]
[1761305169416,0.1,191.52,191.51,36.18]
[1761305169612,0.1,191.52,191.49,0.66]
[1761305169819,0.1,191.52,191.51,36.18]
[1761305172925,0.1,191.52,191.51,36.9]
[1761305174413,7.69745259,191.52,191.51,36.18]
[1761305175196,6.0213868,191.52,191.51,36.18]
[1761305175596,6.0213868,191.52,191.48,0.72]
[1761305175920,0.7,191.51,191.49,36.18]
[1761305176105,6.0213868,191.52,191.49,36.18]
[1761305176417,6.0213868,191.52,191.49,36.9]
[1761305177202,6.0213868,191.52,191.49,36.18]
[1761305177401,0.8,191.52,191.49,36.9]
[1761305177912,5.32147685,191.52,191.49,36.18]
[1761305178223,5.32147685,191.52,191.5,0.72]
[1761305178398,5.32147685,191.52,191.49,38.57606579]
[1761305179117,5.32147685,191.52,191.49,36.9]
[1761305180225,6.02147685,191.52,191.49,36.9]
[1761305181414,5.32147685,191.52,191.49,38.57606579]
[1761305182011,0.1,191.52,191.51,1.67606579]
[1761305182207,0.1,191.52,191.51,2.39606579]
[1761305185228,0.1,191.52,191.51,38.57606579]
[1761305185532,0.1,191.52,191.51,43.79772523]
[1761305187836,0.1,191.52,191.51,49.0183701]
[1761305189614,0.1,191.52,191.51,99.0183701]
[1761305190015,0.1,191.52,191.51,99.54053604]
[1761305192841,0.1,191.52,191.51,97.34230431]
[1761305193053,0.78,191.52,191.51,5.22064487]
[1761305193343,0.78,191.52,191.51,36.18]
[1761305193344,6.0013868,191.52,191.51,36.18]
[1761305193639,5.3213868,191.52,191.51,36.18]
[1761305194047,6.0013868,191.52,191.51,36.18]
[1761305200540,0.78,191.52,191.51,36.18]
[1761305201633,0.1,191.52,191.51,36.18]
[1761305205836,0.82,191.52,191.51,36.18]
[1761305206142,0.1,191.52,191.51,36.18]
[1761305207834,0.1,191.52,191.51,36.89]
[1761305208348,0.1,191.52,191.51,36.18]
[1761305214029,0.1,191.52,191.51,36.89]
[1761305214835,0.1,191.52,191.51,36.18]
[1761305215929,0.82,191.52,191.51,36.18]
[1761305220756,0.1,191.52,191.51,36.89]
[1761305221452,0.1,191.52,191.51,36.18]
[1761305228941,0.82,191.52,191.51,36.18]
[1761305229143,0.1,191.52,191.51,36.18]
[1761305230641,0.1,191.52,191.51,36.89]
[1761305230842,0.1,191.52,191.51,36.87]
[1761305231042,0.1,191.52,191.51,0.71]
[1761305231242,0.1,191.52,191.51,36.87]
[1761305231637,0.1,191.52,191.51,0.71]
[1761305231865,0.1,191.52,191.51,36.87]
[1761305232664,0.1,191.52,191.51,36.16]
[1761305233250,0.1,191.52,191.51,36.85]
[1761305233778,0.1,191.52,191.51,36.16]
[1761305236461,0.1,191.52,191.51,36.85]
[1761305236773,0.1,191.52,191.51,36.16]
[1761305237873,0.1,191.52,191.51,36.85]
[1761305241375,0.1,191.52,191.51,36.16]
[1761305241556,0.1,191.52,191.49,7.83891522]
[1761305241772,0.1,191.52,191.5,36.85]
[1761305241977,0.1,191.52,191.5,0.69]
[1761305242273,0.1,191.52,191.51,36.16]
[1761305243804,0.1,191.52,191.51,36.85]
[1761305244096,0.1,191.52,191.51,36.16]
[1761305244480,0.1,191.52,191.51,36.85]
[1761305244678,0.1,191.52,191.51,36.16]
[1761305245002,0.1,191.52,191.51,89.46686551]
[1761305245184,0.1,191.52,191.51,103.30686551]
[1761305245390,0.1,191.52,191.51,139.46686551]
[1761305245926,0.1,191.52,191.51,144.68852495]
[1761305246134,0.1,191.52,191.51,108.52852495]
[1761305246305,0.1,191.52,191.51,144.68852495]
[1761305246510,0.1,191.52,191.51,108.52852495]
[1761305246816,0.1,191.52,191.51,144.68852495]
[1761305250905,0.1,191.52,191.51,108.52852495]
[1761305251099,0.1,191.52,191.51,144.68852495]
[1761305251503,0.1,191.52,191.51,108.52852495]
[1761305251699,0.1,191.52,191.51,144.68852495]
[1761305252521,0.1,191.52,191.51,108.52852495]
[1761305252923,0.1,191.52,191.51,144.68852495]
[1761305255020,0.1,191.52,191.51,108.52852495]
[1761305255227,0.1,191.52,191.51,144.68852495]
[1761305256806,0.1,191.52,191.51,107.58553753]
[1761305257127,0.1,191.52,191.51,143.72553753]
[1761305257526,0.1,191.52,191.51,107.58553753]
[1761305257926,0.1,191.52,191.51,145.814474]
[1761305261930,0.1,191.52,191.51,109.674474]
[1761305262414,0.1,191.52,191.51,145.814474]
[1761305264338,0.1,191.52,191.51,109.674474]
[1761305264832,0.1,191.52,191.51,145.814474]
[1761305265824,0.1,191.52,191.51,109.674474]
[1761305266022,0.1,191.52,191.51,145.814474]
[1761305267045,0.1,191.52,191.51,144.14059591]
[1761305267248,0.1,191.52,191.51,145.814474]
[1761305269154,0.1,191.52,191.51,109.674474]
[1761305269349,0.1,191.52,191.51,145.814474]
[1761305270930,0.1,191.52,191.51,109.674474]
[1761305271134,0.1,191.52,191.51,145.814474]
[1761305273129,0.1,191.54,191.53,100.0]
[1761305273434,0.1,191.54,191.53,138.3359895]
[1761305273748,0.1,191.54,191.53,138.50387809]
[1761305273928,0.1,191.54,191.53,104.45237828]
[1761305274124,0.1,191.54,191.53,140.59237828]
[1761305274557,0.1,191.54,191.53,109.67349246]
[1761305274735,0.1,191.54,191.53,156.68996767]
[1761305275039,0.1,191.56,191.55,100.0]
[1761305275245,0.1,191.56,191.55,138.33593499]
[1761305275447,0.1,191.56,191.55,138.50387809]
[1761305275649,0.1,191.56,191.55,140.59226924]
[1761305276046,0.1,191.56,191.55,104.45226924]
[1761305276247,0.1,191.56,191.55,145.81283828]
[1761305276554,0.8,191.56,191.55,37.81387809]
[1761305276956,0.8,191.56,191.55,1.67387809]
[1761305277149,0.8,191.56,191.55,37.81387809]
[1761305277655,0.8,191.56,191.55,43.03444713]
[1761305278446,0.1,191.56,191.55,6.89444713]
[1761305278646,0.1,191.56,191.55,43.03444713]
[1761305279455,0.8,191.56,191.55,43.03444713]
[1761305279843,0.1,191.56,191.55,43.03444713]
[1761305280846,0.8,191.56,191.55,43.03444713]
[1761305281750,0.8,191.56,191.54,6.89464732]
[1761305281956,0.8,191.56,191.53,56.89491565]
[1761305282161,0.8,191.56,191.55,36.14]
[1761305283845,0.1,191.56,191.55,37.81387809]
[1761305284040,0.1,191.56,191.55,41.36056904]
[1761305284253,0.8,191.56,191.55,43.03444713]
[1761305284648,0.8,191.56,191.55,93.03444713]
[1761305284853,0.1,191.56,191.55,93.03444713]
[1761305285270,0.8,191.56,191.55,93.03444713]
[1761305285561,0.1,191.56,191.55,93.03444713]
[1761305287135,0.1,191.56,191.55,93.72444713]
[1761305287455,0.1,191.56,191.55,93.03444713]
[1761305290044,0.1,191.56,191.55,93.72444713]
[1761305291260,0.1,191.56,191.55,143.72444713]
[1761305292558,0.1,191.56,191.55,107.58444713]
[1761305292872,0.1,191.56,191.55,143.70444713]
[1761305293469,0.1,191.56,191.55,107.58444713]
[1761305293645,0.1,191.56,191.55,143.70444713]
[1761305297370,0.1,191.56,191.55,107.58444713]
[1761305297575,0.1,191.56,191.55,143.70444713]
[1761305299180,0.1,191.56,191.55,143.01444713]
[1761305299758,0.1,191.56,191.55,107.54444713]
[1761305300068,0.1,191.56,191.55,143.01444713]
[1761305300570,0.77,191.56,191.55,143.01444713]
[1761305301070,0.77,191.56,191.55,93.01444713]
[1761305302471,0.1,191.56,191.55,93.01444713]
[1761305302667,0.1,191.56,191.55,143.66444713]
[1761305303269,0.1,191.56,191.55,143.01444713]
[1761305303868,0.1,191.56,191.55,143.66444713]
[1761305305262,0.77,191.56,191.55,143.01444713]
[1761305309073,0.77,191.56,191.55,91.34056904]
[1761305309469,0.1,191.56,191.55,91.34056904]
[1761305310152,0.1,191.56,191.55,37.79387809]
[1761305310377,0.76,191.56,191.55,36.12]
[1761305310856,0.76,191.56,191.53,51.67387809]
[1761305311054,0.76,191.56,191.54,37.79387809]
[1761305315378,0.76,191.56,191.54,1.67387809]
[1761305315580,0.76,191.56,191.55,36.12]
[1761305321091,0.1,191.56,191.55,2.61551648]
[1761305321284,0.76,191.56,191.55,43.95608552]
[1761305321485,0.1,191.56,191.55,43.95608552]
[1761305321989,0.1,191.56,191.55,7.83608552]
[1761305322469,0.1,191.56,191.55,43.95608552]
[1761305325175,0.1,191.56,191.55,44.65608552]
[1761305325879,0.1,191.56,191.55,8.53608552]
[1761305326077,0.1,191.56,191.55,44.65608552]
[1761305326989,0.1,191.56,191.55,94.65608552]
[1761305327590,0.1,191.56,191.55,95.17814242]
[1761305327969,0.1,191.56,191.55,94.65608552]
[1761305328277,0.1,191.56,191.55,58.53608552]
[1761305328480,0.1,191.56,191.55,94.65608552]
[1761305328695,0.1,191.56,191.55,95.17814242]
[1761305328989,0.1,191.56,191.55,94.65608552]
[1761305329298,0.1,191.56,191.55,95.17814242]
[1761305329788,0.1,191.56,191.55,59.05814242]
[1761305329990,0.1,191.56,191.55,95.17814242]
[1761305330487,0.1,191.56,191.55,94.65608552]
[1761305330692,0.1,191.56,191.55,95.17814242]
[1761305330993,0.1,191.56,191.55,59.05814242]
[1761305331285,0.1,191.56,191.55,95.17814242]
[1761305333094,0.1,191.56,191.55,59.05814242]
[1761305333296,0.1,191.56,191.55,95.17814242]
[1761305334296,0.1,191.56,191.55,61.14653357]
[1761305334605,0.1,191.56,191.55,97.26653357]